Cogmind - Beta 15 @@@ ROGUE MODE // 2025.06.24 @ 07:48:02 Player: CL-1C0 Result: Destroyed by C-17 Slicer with Blade Saw Performance ------------- Evolutions (4) 2000 Regions Visited (9) 1800 Robots Destroyed (64) 320 Value Destroyed (1485) 1485 Prototype IDs (16) 320 Alien Tech Used (0) 0 Bonus (1300) 1300 TOTAL SCORE: 7225 Bonus ------- Entered DSFs 500 Registered with UFD 300 Met Optimus in HQ 500 Cogmind --------- Core Integrity 0/850 Matter 10/300 Energy 99/100 System Corruption 26% Temperature Cool (0) Movement Core (50) Location -6/DSF Parts ------- > --- POWER (1) -------- (None) > --- PROPULSION (3) --- (None) > --- UTILITY (9) ------ Experimental Heat Sink > --- WEAPON (2) ------- (None) > --- INVENTORY (5) ---- Relay Coupler [Heavy] (3) Relay Coupler [Proto] (3) Relay Coupler [Proto] (4) Remote Datajack CPS Tube (2) Peak State ------------ > --- POWER ------------ Light Angular Momentum Engine > --- PROPULSION ------- Armored Treads Carbon-fiber Leg > --- UTILITY ---------- Scrap Suit Machine Analyzer Enhanced Optical Array Active Sensor Suite Hacking Suite System Shield > --- WEAPON ----------- Heavy Laser CPS Tube > --- INVENTORY -------- Hardened Light Armor Plating Relay Coupler [Heavy] CPS Tube DRS Beacon [Rating: 68] Favorites ----------- Power Ion Engine Engine Ion Engine Propulsion Improved Treads Treads Improved Treads Leg Carbon-fiber Leg Wheel Compact Wheel Hover Unit Gravmag System Flight Unit Improved Flight Unit Utility Structural Scanner Device Structural Scanner Storage Large Storage Unit Processor Machine Analyzer Hackware System Shield Protection Hardened Light Armor Plating Weapon Heavy Assault Rifle Energy Gun Small Laser Ballistic Gun Heavy Assault Rifle Ballistic Cannon Gauss Cannon Launcher Grenade Launcher Special Weapon CPS Tube Build | -11 -10 -9 -9 -9 -9 -6 -6 -6 -6 ------- Run | Yrd Mat Mat Sto Rec Scr Fac Was Fac DSF Slots Evolved 8 | . . 2 . . . 6 . . . Power . | . . . . . . . . . . Propulsion 1 | . . 1 . . . . . . . Utility 7 | . . 1 . . . 6 . . . Weapon . | . . . . . . . . . . Parts Attached 62 | . 3 16 14 1 4 19 1 . 4 Power 3 | . . . 1 . 1 1 . . . Engine 3 | . . . 1 . 1 1 . . . Core . | . . . . . . . . . . Reactor . | . . . . . . . . . . Propulsion 15 | . 2 5 3 . . 4 1 . . Treads 11 | . 2 3 3 . . 2 1 . . Leg 1 | . . . . . . 1 . . . Wheel 1 | . . 1 . . . . . . . Hover 1 | . . . . . . 1 . . . Flight 1 | . . 1 . . . . . . . Utility 30 | . 1 5 8 1 1 10 . . 4 Device 15 | . . 1 8 . . 5 . . 1 Storage 2 | . . 1 . . 1 . . . . Processor 5 | . . . . . . 2 . . 3 Hackware 3 | . . . . . . 3 . . . Protection 5 | . 1 3 . 1 . . . . . Artifact . | . . . . . . . . . . Weapon 14 | . . 6 2 . 2 4 . . . Energy Gun 2 | . . 1 . . . 1 . . . Energy Cannon . | . . . . . . . . . . Ballistic Gun 8 | . . 4 2 . 2 . . . . Ballistic Cannon 1 | . . . . . . 1 . . . Launcher 2 | . . 1 . . . 1 . . . Special Weapon 1 | . . . . . . 1 . . . Impact Weapon . | . . . . . . . . . . Slashing Weapon . | . . . . . . . . . . Piercing Weapon . | . . . . . . . . . . Special Melee Weapon . | . . . . . . . . . . Unidentified Prototypes 3 | . . 2 . . . . . . 1 Corrupted Parts 1 | . . . . . . . 1 . . System Corruption 4 | . . . . . . . 4 . . Parts Lost 19 | . . 4 1 . . 11 1 . 2 Power 2 | . . 1 . . . 1 . . . Propulsion 7 | . . 1 1 . . 4 1 . . Utility 5 | . . 1 . . . 2 . . 2 Weapon 5 | . . 1 . . . 4 . . . Highest Loss Streak 7 | . . 1 1 . . 7 1 . 2 To Critical Strikes . | . . . . . . . . . . Average Backups 14 | . 7 12 14 14 15 12 11 5 5 Power . | . 1 1 . . . . 1 . . Propulsion 3 | . 2 5 5 4 3 . . . . Utility 6 | . 2 2 4 5 8 7 6 3 3 Weapon 3 | . 1 3 4 5 3 . 1 . . Tool/Special . | . . . . . . . . . . Unused Backups 40 | . 6 10 . . 7 3 9 . 5 Power 4 | . 1 1 . . . . 2 . . Propulsion 12 | . 2 6 . . 3 . 1 . . Utility 14 | . 1 2 . . 2 2 4 . 3 Weapon 7 | . 2 1 . . 2 . 2 . . Tool/Special 3 | . . . . . . 1 . . 2 Average Slot Usage (%) 88 | . 99 95 99 98 86 75 74 6 13 Engine 10 | . 14 11 11 11 11 4 4 . . Treads 27 | . 18 25 32 33 33 10 5 6 3 Device 10 | . . 9 18 11 11 10 10 . 2 Storage 10 | . 14 11 11 11 11 4 4 . . Processor 1 | . . . . . . 12 10 . 7 Hackware 1 | . . . . . . 14 10 . . Protection 9 | . 13 10 3 10 11 2 4 . . Energy Gun 1 | . 14 1 . . . 2 4 . . Ballistic Gun 12 | . 14 18 21 21 8 4 . . . Peak Build Rating 68 | . 7 16 21 18 28 68 58 11 23 Average Rating 19 | . 6 12 16 16 18 46 43 11 14 On Entrance 17 | 6 6 7 15 21 14 28 58 11 11 Naked Turns 20 | . . . . . . . 18 . 2 Heaviest Build 105 | 13 16 35 38 37 105 105 50 . . Greatest Support 69 | 20 40 69 69 69 69 69 20 3 3 Greatest Overweight (x) 9 | . . 2 . . 1 9 2 . . Average Overweight (x) . | . . . . . . 1 . . . Largest Inventory Capacity 25 | . 8 15 15 15 25 25 15 5 5 Average Capacity 16 | . 8 13 15 15 20 16 12 5 5 Most Carried 25 | . 8 15 15 15 25 24 15 5 5 Average Carried 15 | . 7 12 14 14 18 14 12 5 5 Final Capacity 25 | 8 8 15 15 15 25 15 5 5 5 Final Carried 25 | 6 8 15 15 15 25 15 5 5 5 Class Distribution -------------------- 88% | Mutant 5% | Scavenger-Mutant 5% | Hacker-Mutant Dominant Class ---------------- Mutant | -10/Materials Mutant | -9/Materials Mutant | -9/Storage Mutant | -9/Recycling Mutant | -9/Scraptown Hacker-Mutant | -6/Factory Scavenger-Mutant | -6/Waste Mutant | -6/Factory Mutant | -6/DSF Resources | -11 -10 -9 -9 -9 -9 -6 -6 -6 -6 ----------- Run | Yrd Mat Mat Sto Rec Scr Fac Was Fac DSF Matter Collected 1812 | 200 138 574 211 421 28 238 . . 2 Remotely . | . . . . . . . . . . Salvage Created 2479 | . 167 792 224 1127 . 169 . . . Parts 149 | . 14 69 15 38 . 13 . . . Haulers Intercepted 3 | . 1 2 . . . . . . . Recyclers Shooed 13 | . 1 . 2 9 . 1 . . . Parts Field Recycled . | . . . . . . . . . . Retrieved Matter . | . . . . . . . . . . Parts Self-Destructed . | . . . . . . . . . . Prevented . | . . . . . . . . . . Kills | -11 -10 -9 -9 -9 -9 -6 -6 -6 -6 ------- Run | Yrd Mat Mat Sto Rec Scr Fac Was Fac DSF Combat Hostiles Destroyed 40 | . 4 22 4 4 . 6 . . . Guns 31 | . 4 15 4 4 . 4 . . . AOE 9 | . . 7 . . . 2 . . . Classes Destroyed 14 | . 5 2 1 2 . 4 . . . Worker 1 | . . 1 . . . . . . . Builder 4 | . 1 3 . . . . . . . Hauler 3 | . 1 2 . . . . . . . Recycler 13 | . . . . 13 . . . . . Operator 1 | . . . 1 . . . . . . Watcher 2 | . 1 1 . . . . . . . Swarmer 14 | . 3 11 . . . . . . . Grunt 7 | . 1 5 . . . 1 . . . Duelist 1 | . . . . . . 1 . . . Protector 2 | . . . . 2 . . . . . Sentry 12 | . . 6 4 2 . . . . . Specialist 2 | . . . . . . 2 . . . Programmer 1 | . . . . . . 1 . . . Heavy 1 | . . . . . . 1 . . . Best Kill Streak 9 | . 2 9 2 9 . 1 . . . Combat Bots Only 7 | . 2 7 2 2 . 1 . . . Max Kills in Single Turn 3 | . 1 3 1 1 . 1 . . . Gunslinging . | . . . . . . . . . . Exploded 3 | . . 3 . . . 1 . . . Melee . | . . . . . . . . . . Uniques/NPCs Destroyed . | . . . . . . . . . . Combat | -11 -10 -9 -9 -9 -9 -6 -6 -6 -6 -------- Run | Yrd Mat Mat Sto Rec Scr Fac Was Fac DSF Hostile Shots Fired 261 | . 24 72 28 12 . 111 2 . 12 Missed 79 | . 7 23 10 4 . 30 . . 5 Hits 182 | . 17 49 18 8 . 81 2 . 7 Melee 14 | . . . . . . 7 2 . 5 Projectile 168 | . 17 49 18 8 . 74 . . 2 AOE 1 | . . . . . . . . . 1 Critical Strikes 16 | . 1 . . . . 9 2 . 4 Part Disruptions 3 | . . . . . . 3 . . . Damage Taken 3854 | . 159 897 271 124 . 2095 92 . 216 Core 1059 | . 17 112 45 32 . 558 92 . 203 Absorbed by Shields . | . . . . . . . . . . Core Remaining (%) 81 | 100 93 . . . 52 . . . . Volleys Fired 187 | . 23 58 21 52 . 33 . . . Largest 2 | . 2 2 2 2 . 2 . . . Hottest 109 | . 60 46 46 46 . 109 . . . Shots Fired 343 | . 46 108 40 103 . 46 . . . Gun 321 | . 46 102 38 103 . 32 . . . Cannon 6 | . . . . . . 6 . . . Launcher 15 | . . 6 2 . . 7 . . . Special 1 | . . . . . . 1 . . . Kinetic 289 | . 23 102 38 103 . 23 . . . Thermal 38 | . 23 . . . . 15 . . . Explosive 15 | . . 6 2 . . 7 . . . Electromagnetic . | . . . . . . . . . . Robot Hit Streak 17 | . 6 11 17 14 . 13 . . . Robot Miss Streak 6 | . 6 2 1 3 . 1 . . . Penetration Max . | . . . . . . . . . . Secondary Targets . | . . . . . . . . . . Shots Hit Robots 240 | . 25 78 30 71 . 36 . . . Core Hits 101 | . 12 42 9 25 . 13 . . . Critical Kills . | . . . . . . . . . . Critical Parts Destroyed 2 | . . 1 1 . . . . . . Critical Strikes 2 | . . 1 1 . . . . . . Destroy 2 | . . 1 1 . . . . . . Melee Attacks . | . . . . . . . . . . Impact . | . . . . . . . . . . Slashing . | . . . . . . . . . . Piercing . | . . . . . . . . . . Sneak Attacks . | . . . . . . . . . . Combat Hostiles . | . . . . . . . . . . Follow-up Attacks . | . . . . . . . . . . Damage Inflicted 4525 | . 319 1684 488 1079 . 955 . . . Guns 3503 | . 311 1104 483 1076 . 529 . . . Cannons 82 | . . . . . . 82 . . . Explosions 924 | . . 580 . . . 344 . . . Melee . | . . . . . . . . . . Ramming 16 | . 8 . 5 3 . . . . . Kinetic 3159 | . 165 1104 483 1076 . 331 . . . Thermal 426 | . 146 . . . . 280 . . . Explosive 924 | . . 580 . . . 344 . . . Electromagnetic . | . . . . . . . . . . Impact . | . . . . . . . . . . Slashing . | . . . . . . . . . . Piercing . | . . . . . . . . . . Highest Corruption 26 | . . 2 2 2 . 3 26 26 26 Average Corruption 3 | . . 2 2 2 . 2 13 26 26 Corruption Purged . | . . . . . . . . . . Corruption Blocked . | . . . . . . . . . . Effects 45 | . . 2 4 20 . 7 6 2 4 Message Errors 8 | . . 1 1 3 . 2 . . 1 Matter Fused 11 | . . . 1 4 . 1 3 2 . Heat Flow Errors 9 | . . . . 6 . 1 1 . 1 Energy Discharges 3 | . . . 1 2 . . . . . Parts Fused 1 | . . . . . . 1 . . . Data Loss (minor) 6 | . . 1 1 2 . 1 1 . . Data Loss (major) 1 | . . . . . . . . . 1 Misfires 1 | . . . . 1 . . . . . Alerts 1 | . . . . . . 1 . . . Misdirections 2 | . . . . . . . 1 . 1 Weapon Failures 2 | . . . . 2 . . . . . Overload Shots . | . . . . . . . . . . Overflow Damage 8 | . . 8 . . . . . . . Projectiles . | . . . . . . . . . . Explosions 8 | . . 8 . . . . . . . Melee . | . . . . . . . . . . Knockbacks 3 | . . . . . . 3 . . . Impact . | . . . . . . . . . . Kinetic 3 | . . . . . . 3 . . . Secondary . | . . . . . . . . . . Self-Inflicted Damage . | . . . . . . . . . . Shots . | . . . . . . . . . . Rammed 5 | . 3 . 1 1 . . . . . Targets Rammed 6 | . 4 . 1 1 . . . . . Kicked . | . . . . . . . . . . Crushed 1 | . 1 . . . . . . . . Highest Temperature 244 | . 81 2 . 244 . 76 142 . 61 Average Temperature 63 | . 32 2 . 103 . 30 84 . 32 Received Heat Transfer 558 | . 45 135 63 27 . 288 . . . Siege Activations . | . . . . . . . . . . Martial Activations . | . . . . . . . . . . Shielding Activations . | . . . . . . . . . . Robots Disrupted . | . . . . . . . . . . Combat Hostiles . | . . . . . . . . . . Robots Corrupted . | . . . . . . . . . . Combat Hostiles . | . . . . . . . . . . Parts Fried . | . . . . . . . . . . Impact Corruptions . | . . . . . . . . . . Robots Melted . | . . . . . . . . . . Combat Hostiles . | . . . . . . . . . . Parts Melted . | . . . . . . . . . . Heat Transferred 806 | . 325 . . . . 481 . . . Parts Sabotaged . | . . . . . . . . . . Parts Stolen . | . . . . . . . . . . Parts Stripped . | . . . . . . . . . . Power Chain Reactions . | . . . . . . . . . . Alert | -11 -10 -9 -9 -9 -9 -6 -6 -6 -6 ------- Run | Yrd Mat Mat Sto Rec Scr Fac Was Fac DSF Maximum Alert Level 1 | . . 1 . . . . . . . Low Security (%) 93 | . 100 74 100 100 . 100 100 100 100 Level 1 6 | . . 25 . . . . . . . Level 2 . | . . . . . . . . . . Level 3 . | . . . . . . . . . . Level 4 . | . . . . . . . . . . Level 5 . | . . . . . . . . . . High Security . | . . . . . . . . . . Max Security . | . . . . . . . . . . Peak Influence 323 | . 77 323 164 36 . 92 4 . 15 Initial 123 | . . 14 123 . . . 4 . . Average 51 | . 32 105 113 6 . 36 . . 2 Influence Increases 1537 | . 164 643 151 242 . 322 . . 15 Destroy 0b10 Robot/C 760 | . 80 440 80 40 . 120 . . . Destroy 0b10 Robot/NC 130 | . 15 35 5 75 . . . . . Destroy Leader 230 | . 24 126 40 . . 40 . . . Trap Triggered on 0b10 20 | . . . . . . 20 . . . Successful Hack 28 | . . 8 14 6 . . . . . Select Force Hacks 120 | . . . . 120 . . . . . Disable Machine 30 | . . . . . . 30 . . . Destroy Structure 69 | . . 19 12 1 . 37 . . . Partial Spotted 15 | . . . . . . 15 . . . Lose Combat Pursuer 135 | . 45 15 . . . 60 . . 15 Influence Decreases 1522 | . 129 385 444 242 . 308 14 . . Entered New Map 201 | . . 21 170 . . . 10 . . Time Decay 1122 | . 129 324 204 242 . 219 4 . . Lost Part 139 | . . 40 10 . . 89 . . . Lost Ally 60 | . . . 60 . . . . . . Squads Dispatched 10 | . . 3 1 . . 5 . . 1 Investigation 2 | . . 1 . . . 1 . . . Extermination 1 | . . . . . . 1 . . . Reinforcement 7 | . . 2 1 . . 3 . . 1 Assault . | . . . . . . . . . . Garrison . | . . . . . . . . . . Intercept . | . . . . . . . . . . Searches Triggered . | . . . . . . . . . . Construction Impeded 1 | . . . . . . 1 . . . Haulers Reinforced . | . . . . . . . . . . Active Scanning Responses . | . . . . . . . . . . Cargo Convoy Interrupts . | . . . . . . . . . . Stealth | -11 -10 -9 -9 -9 -9 -6 -6 -6 -6 --------- Run | Yrd Mat Mat Sto Rec Scr Fac Was Fac DSF Distress Signals 2 | . . 2 . . . . . . . Communications Jammed . | . . . . . . . . . . Distress Signals . | . . . . . . . . . . Times Spotted 74 | . 7 34 5 7 . 14 5 . 2 Peak Tracking Total 7 | . 3 7 3 2 . 4 5 . 3 Tactical Retreats 8 | . 3 1 . . . 3 . . 1 Traps | -11 -10 -9 -9 -9 -9 -6 -6 -6 -6 ------- Run | Yrd Mat Mat Sto Rec Scr Fac Was Fac DSF Traps Triggered 2 | . . 1 . . . 1 . . . Indirectly . | . . . . . . . . . . Trap Hack Attempts . | . . . . . . . . . . Triggered . | . . . . . . . . . . Disarmed . | . . . . . . . . . . Reprogrammed . | . . . . . . . . . . Reused 2 | . . . . . . 2 . . . Traps Extracted . | . . . . . . . . . . Installed 3 | . . . . . . 3 . . . Triggered 2 | . . . . . . 2 . . . Most Traps Carried 3 | . . . . . 3 3 . . . Machines | -11 -10 -9 -9 -9 -9 -6 -6 -6 -6 ---------- Run | Yrd Mat Mat Sto Rec Scr Fac Was Fac DSF Machines Disabled 2 | . . . . . . 2 . . . Max in Single Turn 1 | . . . . . . 1 . . . Machines Repaired . | . . . . . . . . . . Machines Dismantled . | . . . . . . . . . . Machines Sabotaged . | . . . . . . . . . . Overloaded Fab Kills . | . . . . . . . . . . Hacking | -11 -10 -9 -9 -9 -9 -6 -6 -6 -6 --------- Run | Yrd Mat Mat Sto Rec Scr Fac Was Fac DSF Machines Accessed 21 | . 1 5 3 7 2 2 . 1 . Terminals 14 | . 1 5 3 3 . 1 . 1 . Fabricators 1 | . . . . . . 1 . . . Repair Stations . | . . . . . . . . . . Recycling Units 4 | . . . . 4 . . . . . Scanalyzers . | . . . . . . . . . . Garrison Access . | . . . . . . . . . . Total Hacks 58 | . 2 11 9 20 9 5 . 2 . Successful 28 | . 1 1 7 8 9 1 . 1 . Failed 30 | . 1 10 2 12 . 4 . 1 . Catastrophic 8 | . . 3 . 2 . 3 . . . Database Lockouts . | . . . . . . . . . . Manual 31 | . . 11 6 9 . 5 . . . Terminals 40 | . 2 11 9 12 . 4 . 2 . Fabricators 1 | . . . . . . 1 . . . Repair Stations . | . . . . . . . . . . Recycling Units 8 | . . . . 8 . . . . . Scanalyzers . | . . . . . . . . . . Garrison Access . | . . . . . . . . . . Terminal Hacks 22 | . 1 1 7 2 9 1 . 1 . Part Schematic 1 | . . . . 1 . . . . . Robot Analysis 10 | . . . 2 . 8 . . . . Prototype ID Bank 1 | . . . . 1 . . . . . Open Door 1 | . . . 1 . . . . . . Open DSF 1 | . . . . . . . . 1 . Branch Access Points 2 | . . 1 1 . . . . . . Emergency Access Points 1 | . . . 1 . . . . . . Recycling Unit Index 1 | . . . . . . 1 . . . Alert Level 1 | . . . 1 . . . . . . Zone Layout 2 | . 1 . 1 . . . . . . Proto ID Catalog 1 | . . . . . 1 . . . . Fabricator Hacks . | . . . . . . . . . . Repair Station Hacks . | . . . . . . . . . . Recycling Unit Hacks 2 | . . . . 2 . . . . . Retrieve Components 2 | . . . . 2 . . . . . Scanalyzer . | . . . . . . . . . . Garrison Access Hacks . | . . . . . . . . . . Unauthorized Hacks 4 | . . . . 4 . . . . . Terminals . | . . . . . . . . . . Fabricators . | . . . . . . . . . . Repair Stations . | . . . . . . . . . . Recycling Units 4 | . . . . 4 . . . . . Tunnel 4 | . . . . 4 . . . . . Scanalyzers . | . . . . . . . . . . Garrison Access . | . . . . . . . . . . Data Cores Recovered 1 | . . . 1 . . . . . . Used . | . . . . . . . . . . Hacking Detections 14 | . . 5 2 4 . 2 . 1 . Full Trace Events 6 | . . 2 . 3 . 1 . . . Feedback Events . | . . . . . . . . . . Feedback Blocked . | . . . . . . . . . . Robot Schematics Acquired . | . . . . . . . . . . Robots Built . | . . . . . . . . . . Authchips . | . . . . . . . . . . Time . | . . . . . . . . . . Total Robot Build Rating . | . . . . . . . . . . Part Schematics Acquired 1 | . . . . 1 . . . . . Parts Built . | . . . . . . . . . . Authchips . | . . . . . . . . . . Time . | . . . . . . . . . . Total Part Build Rating . | . . . . . . . . . . Parts Repaired . | . . . . . . . . . . Time . | . . . . . . . . . . Parts Recycled . | . . . . . . . . . . Recycled Matter . | . . . . . . . . . . Retrieved Matter . | . . . . . . . . . . Retrieved Components 9 | . . . . 9 . . . . . Parts Scanalyzed . | . . . . . . . . . . Part Schematics Acquired . | . . . . . . . . . . Parts Damaged . | . . . . . . . . . . Bothacking | -11 -10 -9 -9 -9 -9 -6 -6 -6 -6 ------------ Run | Yrd Mat Mat Sto Rec Scr Fac Was Fac DSF Used RIF Installer . | . . . . . . . . . . Robots Hacked . | . . . . . . . . . . Non-combat . | . . . . . . . . . . Combat . | . . . . . . . . . . Robot Hacks Applied . | . . . . . . . . . . Relay Couplers Released . | . . . . . . . . . . Fabnet Peak Effective % . | . . . . . . . . . . Robots Rewired . | . . . . . . . . . . Allies Hacked . | . . . . . . . . . . Hacks Repelled . | . . . . . . . . . . Allies | -11 -10 -9 -9 -9 -9 -6 -6 -6 -6 -------- Run | Yrd Mat Mat Sto Rec Scr Fac Was Fac DSF Total Allies . | . . . . . . . . . . Largest Group . | . . . . . . . . . . Highest-Rated Group . | . . . . . . . . . . Highest-Rated Ally . | . . . . . . . . . . Total Orders 1 | . . . 1 . . . . . . EXPLORE 1 | . . . 1 . . . . . . Ally Attacks . | . . . . . . . . . . Total Damage . | . . . . . . . . . . Kills . | . . . . . . . . . . Allies Corrupted . | . . . . . . . . . . Allies Melted . | . . . . . . . . . . Intel | -11 -10 -9 -9 -9 -9 -6 -6 -6 -6 ------- Run | Yrd Mat Mat Sto Rec Scr Fac Was Fac DSF Active Infowar (turns) 5141 | . . . 287 1198 2907 650 99 . . Optics 748 | . . . . . . 649 99 . . A.S.S. 46 | . . . . . . 46 . . . Structural 4557 | . . . 287 1198 2907 165 . . . Machine Analysis 749 | . . . . . . 650 99 . . Robot Analysis Total 10 | . . . 2 . 8 . . . . Derelict Logs Recovered . | . . . . . . . . . . Drone Launches 14 | . . . 14 . . . . . . Drone Recoveries 4 | . . . 4 . . . . . . Exploration | -11 -10 -9 -9 -9 -9 -6 -6 -6 -6 ------------- Run | Yrd Mat Mat Sto Rec Scr Fac Was Fac DSF Turns Passed 6721 | . 299 1012 425 1198 2907 650 137 33 60 Spaces Moved 3514 | 1 142 552 195 640 1502 221 91 65 105 Core 273 | . . . . . . 42 61 65 105 Treads 2878 | . 103 229 195 640 1502 179 30 . . Legs 40 | 1 39 . . . . . . . . Wheels 323 | . . 323 . . . . . . . Hover . | . . . . . . . . . . Flight . | . . . . . . . . . . Fastest Speed 50 | 120 120 100 160 160 160 150 50 50 50 Average Speed 168 | 120 149 139 160 160 191 233 142 50 50 Slowest Speed 500 | 120 160 160 160 160 240 500 330 50 50 Overloaded Moves . | . . . . . . . . . . Propulsion Burnouts . | . . . . . . . . . . Robots Hopped . | . . . . . . . . . . Potential Cave-ins . | . . . . . . . . . . Cave-ins Triggered 1 | . . 1 . . . . . . . Exploration Rate (%) 48 | 2 36 59 54 95 82 5 74 3 77 Regions Visited 9 Branch Regions 3 Pre-discovered Areas 4 | . . . . 4 . . . . . Known Exits Taken 3 | . . 1 1 . . . . 1 . Unknown Exits Taken 4 | 1 1 . . 1 1 . . . . Scrap Searched 4 | . . . . . 4 . . . . Spaces Dug 19 | . . 6 13 . . . . . . Terrain Destroyed 76 | . . 20 13 . . 43 . . . Melee . | . . . . . . . . . . Projectile 1 | . . . . . . 1 . . . AOE 75 | . . 20 13 . . 42 . . . Terrain Rammed . | . . . . . . . . . . Walls Destroyed . | . . . . . . . . . . Machines Disabled . | . . . . . . . . . . Actions | -11 -10 -9 -9 -9 -9 -6 -6 -6 -6 --------- Run | Yrd Mat Mat Sto Rec Scr Fac Was Fac DSF Total 3978 | . 182 700 272 711 1534 307 97 65 110 Wait 67 | . 5 31 14 14 . 2 . . 1 Move 3507 | . 141 551 194 639 1501 221 90 65 105 Hop . | . . . . . . . . . . Pick Up 72 | . 4 22 9 1 19 15 2 . . Fast Attach 30 | . 1 3 6 . . 13 3 . 4 Attach 22 | . 2 4 2 1 2 11 . . . Detach . | . . . . . . . . . . Swap 26 | . . 12 10 . 2 2 . . . Drop 58 | . 2 19 15 3 10 7 2 . . Fire 187 | . 23 58 21 52 . 33 . . . Melee . | . . . . . . . . . . Ram . | . . . . . . . . . . Kick . | . . . . . . . . . . Crush 6 | . 4 . 1 1 . . . . . Escape Stasis . | . . . . . . . . . . Rewire . | . . . . . . . . . . Trap 3 | . . . . . . 3 . . . Miscellaneous . | . . . . . . . . . . Route ------- -11/Scrapyard -10/Materials (discovered 2 exits: *Mat / [*Min]) -9/Materials (discovered 5 exits: [*Mat x2] / *Min / *Sto x2) -9/Storage (discovered 2 exits: [*Mat] / *Rec) -9/Recycling (discovered 2 exits: [*Fac] / *Scr) -9/Scraptown -6/Factory -6/Waste -6/Factory -6/DSF (discovered 1 exit: [*Fac]) History --------- Turn | Location | Event 1 | -11/Scrapyard | Discovered new exit (range 0) 1 | -11/Scrapyard | Entered Materials 131 | -10/Materials | Discovered new exit (range 14) 263 | -10/Materials | Discovered new exit (range 4) 300 | -10/Materials | Entered another Materials area 300 | -9/Materials | Evolved 2 slots: Propulsion x1, Utility x1 318 | -9/Materials | Build established: Mutant 379 | -9/Materials | Discovered new exit (range 9) 495 | -9/Materials | Discovered new exit (range 3) 820 | -9/Materials | Discovered new exit (range 15) 1077 | -9/Materials | Destroyed 7 combat bots 1117 | -9/Materials | Identified exit to Mines 1117 | -9/Materials | Identified exit to Storage 1132 | -9/Materials | Crushed by falling debris 1312 | -9/Materials | Entered Storage 1340 | -9/Storage | Identified exit to Recycling 1625 | -9/Storage | Used back door to open Recycling access 1727 | -9/Storage | Discovered new exit (range 54) 1737 | -9/Storage | Entered Recycling 1737 | -9/Recycling | Accompanied by 1 ally 1741 | -9/Recycling | Lost 5 allies 2570 | -9/Recycling | Discovered new exit (range 15) 2897 | -9/Recycling | Scanned before Scraplab entrance 2916 | -9/Recycling | Discovered new exit (range 11) 2921 | -9/Recycling | Entered Scraplab 2935 | -9/Recycling | Entered Scraptown 2935 | -9/Scraptown | System corruption cleaned by C-Scrubber 3148 | -9/Scraptown | Heard Great Nut preacher, LISTEN AND RECITE! 3150 | -9/Scraptown | Visited UFD Registry 3150 | -9/Scraptown | Registered with UFD as "Deathnade" 3166 | -9/Scraptown | Visited Assassins FH 3222 | -9/Scraptown | Visited Shadow of the Wyrm 3243 | -9/Scraptown | Visited TADAMA 3259 | -9/Scraptown | Visited Cyclists 3270 | -9/Scraptown | Entered Cyclist Reading Room 3294 | -9/Scraptown | Visited Spacefarers 3334 | -9/Scraptown | Visited Red Mages 3769 | -9/Scraptown | Visited Analyses Database 3819 | -9/Scraptown | Visited Supply Room 3854 | -9/Scraptown | Visited Chapter 10 3894 | -9/Scraptown | Visited Derelict Rescue Squad 3964 | -9/Scraptown | Visited Science Guys 4078 | -9/Scraptown | Discovered new exit (range 5) 4203 | -9/Scraptown | Visited Curators Association 4345 | -9/Scraptown | Visited Infowarlord's Domain 4371 | -9/Scraptown | Visited Scrapoid Research Area 4551 | -9/Scraptown | Found DRS Beacon 4598 | -9/Scraptown | Visited Scrap Suit Storage 4607 | -9/Scraptown | Found Scrap Suit 4611 | -9/Scraptown | Found Scrap Suit 4946 | -9/Scraptown | Found Relay Coupler [Proto] 4955 | -9/Scraptown | Found Relay Coupler [Proto] 5710 | -9/Scraptown | Met Optimus 5710 | -9/Scraptown | Accepted into 0bPrime 5842 | -9/Scraptown | Entered Factory 5842 | -6/Factory | Evolved 6 slots: Utility x6 6080 | -6/Factory | Lost 7 parts (1p3n2u1w) 6096 | -6/Factory | Core integrity fell below 50% 6133 | -6/Factory | Build established: Hacker-Mutant 6219 | -6/Factory | Found Active Sensor Suite 6492 | -6/Factory | Sucked down chute 6492 | -6/Factory | Entered Waste 6495 | -6/Waste | Build established: Scavenger-Mutant 6507 | -6/Waste | EMP discharged 6507 | -6/Waste | System corruption reached 10% 6591 | -6/Waste | Spotted C-40 Crusher 6591 | -6/Waste | Released all parts (14) 6601 | -6/Waste | Spotted C-40 Crusher 6603 | -6/Waste | Spotted C-40 Crusher 6604 | -6/Waste | Spotted C-40 Crusher 6604 | -6/Waste | Spotted C-40 Crusher 6607 | -6/Waste | EMP discharged 6610 | -6/Waste | Crushed by Compactor (1 part destroyed, 1 dropped) 6617 | -6/Waste | Discovered new exit (range 15) 6629 | -6/Waste | Entered Factory 6662 | -6/Factory | Identified exit to DSF 6662 | -6/Factory | Entered DSF 6690 | -6/DSF | Additional patrols routed to DSF 6691 | -6/DSF | Core integrity fell below 20% 6719 | -6/DSF | Discovered new exit (range 12) 6722 | -6/DSF | Destroyed by C-17 Slicer with Blade Saw Last Messages --------------- LOCATION=DSF AMBIENT_HEAT=-10 GOAL=ESCAPE 06667_ Acquired Imp. Melee Analysis Suite. 06678_ System corrupted: Heat flow error (+118). 06680_ ALERT: Suspicious intruders detected, dispatching Cutter reinforcements to area. 06690_ Hostiles detected in DSF, routing additional patrols. 06690_ Imp. Melee Analysis Suite destroyed. 06690_ Critical hit (Blast). 06691_ Acquired 2 matter. 06693_ System corrupted: Substantial component data lost. 06693_ Biometal Medium Treads severed. 06694_ Imp. Melee Analysis Suite destroyed. 06694_ Critical hit (Blast). 06696_ Imp. Melee Analysis Suite severed. 06698_ Acquired Prototype Device. 06698_ Identified Exp. Heat Sink. 06710_ Q|GUPLQIMNA2HNG TMSRRFD6RNSKM 06719_ EXIT=FOUND Map ----- +----------------------------------------------------+ | ??????#"""""######### !!###### | | ??????#"""""##!!# # !!# # | | ????"##"" | | ????""""" | | ??????#"" ## # !!### ### # | | ??????### ### #!!!#?# #?#!!!# | | ???????## ########## ==##+### | | ???????#! !!#??????# ==## ### | | ???????#! !!#??????# ==## | | ???????## ###??????### #### !!# | | ???????# #????????! !??# !# | | ???????# #???????!! !!?# ### | | ???????# #???????!! !!?# #?? | | ??????### ######???### ####+### | | ??????# ##===#??!#?# #?#!!!#= | | ??????# #"===#!!!## ##!!!# | | ??????# * | | ??????# H =%] | | ??????# = | | ??????#== ##]]]#!!!## ##!!!# | | ??????#== #?]]]#??!### #?#!!!# | | ??????### ######?????# ??###### | | ???????# ==#???????!! ????????? | | ???????# ==#??????#!! ????????? | | ???????# c ==#??????#!! ?????????? | | ???????##@ ###??????###??????????? | | ???????# ==#???????????????????? | | ???????# ==#???????????????????? | | ???????## ###???????????????????? | | ????????# #?????????????????????? | | ????????" ?????????????????????? | | ????????" ?????????????????????? | | ????????"< ????????????????????? | | ????????""""#????????????????????? | | ????????""""#????????????????????? | | ????????##"##????????????????????? | | ?????????????????????????????????? | | ?????????????????????????????????? | | ?????????????????????????????????? | | ?????????????????????????????????? | | ?????????????????????????????????? | | ?????????????????????????????????? | | ?????????????????????????????????? | | | | | | | | | | | | | | | +----------------------------------------------------+ Best States ------------- Heat Dissipation 65 Energy Generation 18 Energy Capacity 300 Matter Stores 300 Matter Capacity 300 Sight Range 22 Robot Scan Range 20 Terrain Scan Density 10 Armor Coverage 150 Evasion (%) 50 Melee Accuracy 18 Recoil Reduction 3 Offensive Hacking 10 Defensive Hacking 20 Item Schematics ----------------- Imp. Hover Unit | -9/Recycling | Hacked Robot Schematics ------------------ None Fabricated ------------ Nothing Repaired ---------- Nothing Alien Tech Used ----------------- None Achievements -------------- None Challenges ------------ None Game ------ Seed PropulsionLightpackProcessor Manual? 0 Play Time 00:42:05 Cumulative 559.7 hours Start 2025.06.24 @ 06:49:02 End 2025.06.24 @ 07:48:02 Sessions 1 Manual Loads 0 Difficulty Rogue Special Mode None Game No. 673 Rogue 673 Adventurer 0 Explorer 0 Win Type - Total 20 Types 14/0/5/1/0/0/0/0/0/0 Lore% 86 Gallery% 83 Achievement% 83 Wizard Run 0 Options --------- Layout 0 ASCII 0 Keyboard 0 Movement Numpad Keybinds 0 Fullscreen 1 Font 18/SmallcapsGlow Map View 76x50 Zoom Use 0% Tactical HUD 1 Map Filters NONE Filters NONE Steam 1 RUN: a6080e70-466c-4077-a3b6-24f8741e375f